[Event "EYCC Open-U18 2019"]
[Site "Bratislava"]
[Date "2019.08.05"]
[Round "4.39"]
[White "Hurdzan, Tomas"]
[Black "Alivodic, Dario"]
[Result "1-0"]
[ECO "C06"]
[WhiteElo "2231"]
[BlackElo "2120"]
[Annotator "NA"]
[PlyCount "121"]
[EventDate "2019.08.02"]
[EventType "swiss"]
[EventCountry "SVK"]
[SourceTitle "playchess.com"]
[Source "ChessBase"]
[SourceQuality "1"]
[TimeControl "40/5400+30:1800+30"]

1. e4 {[%emt 0:00:00]} e6 {[%emt 0:00:00]} 2. d4 {[%emt 0:00:00]} d5 {[%emt 0:00:00]} 3. Nd2 {[%emt 0:00:00]} Nf6 {[%emt 0:00:00]} 4. e5 {[%emt 0:00:00]} Nfd7 {[%emt 0:00:00]} 5. Bd3 {[%emt 0:00:00]} c5 {[%emt 0:00:00]} 6. c3 {[%emt 0:00:04]} Nc6 {[%emt 0:00:00]} 7. Ne2 {[%emt 0:00:10]} cxd4 {[%emt 0:00:00]} 8. cxd4 {[%emt 0:00:04]} f6 {[%emt 0:00:00]} 9. exf6 {[%emt 0:00:19]} Nxf6 {[%emt 0:00:00]} 10. Nf3 {[%emt 0:00:15]} Bd6 {[%emt 0:00:00]} 11. O-O {[%emt 0:00:09]} O-O {[%emt 0:00:00]} 12. Bf4 {[%emt 0:00:16]} Bxf4 {[%emt 0:00:02]} 13. Nxf4 {[%emt 0:00:07]} Ne4 {[%emt 0:00:03]} 14. Qc1 {[%emt 0:00:11]} Ng5 {[%emt 0:00:04]} 15. Nxg5 {[%emt 0:00:05]} Qxg5 {[%emt 0:00:02]} 16. Ne2 {[%emt 0:00:13]} Qf6 {[%emt 0:02:41]} 17. Qd2 {[%emt 0:02:08]} e5 {[%emt 0:12:58]} 18. dxe5 {[%emt 0:00:11]} Nxe5 {[%emt 0:00:34]} 19. Bc2 {[%emt 0:02:19]} Be6 {[%emt 0:01:05]} 20. Nd4 {[%emt 0:01:21]} Bf7 {[%emt 0:03:38]} 21. b3 {[%emt 0:09:59]} Bg6 {[%emt 0:06:09]} 22. Bxg6 {[%emt 0:02:19]} Qxg6 {[%emt 0:03:42]} 23. Rfe1 {[%emt 0:04:00]} Rae8 {[%emt 0:03:48]} 24. Rad1 {[%emt 0:02:52]} Nc6 {[%emt 0:17:15]} 25. Ne2 {[%emt 0:11:36]} Rd8 {[%emt 0:04:50]} 26. Nf4 {[%emt 0:09:26]} Qg5 {[%emt 0:00:34]} 27. Nxd5 {[%emt 0:08:11]} Qxd2 {[%emt 0:00:53]} 28. Rxd2 {[%emt 0:00:09]} Nb4 {[%emt 0:01:38]} 29. Red1 {[%emt 0:01:18]} Nxd5 {[%emt 0:00:07]} 30. Rxd5 {[%emt 0:00:05]} Rxd5 {[%emt 0:00:02]} 31. Rxd5 {[%emt 0:00:07]} Rc8 {[%emt 0:00:06]} 32. g3 {[%emt 0:00:46]} Rc2 {[%emt 0:00:20]} 33. a4 {[%emt 0:03:02]} b6 {[%emt 0:02:25]} 34. Rd8+ {[%emt 0:02:13]} Kf7 {[%emt 0:00:01]} 35. Rd7+ {[%emt 0:00:07]} Kg6 {[%emt 0:00:28]} 36. Rxa7 {[%emt 0:01:46]} Rb2 {[%emt 0:00:04]} 37. Ra6 {[%emt 0:00:40]} Rxb3 {[%emt 0:00:05]} 38. a5 {[%emt 0:00:05]} Ra3 {[%emt 0:00:18]} 39. Rxb6+ {[%emt 0:00:05]} Kh5 {[%emt 0:01:08]} 40. a6 {[%emt 0:00:00]} g5 {[%emt 0:00:00]} 41. h3 {[%emt 0:05:00]} g4 {[%emt 0:00:50]} 42. Rb5+ {[%emt 0:17:24]} Kg6 {[%emt 0:00:12]} 43. Rb6+ Kh5 44. hxg4+ {[%emt 0:00:53]} Kxg4 {[%emt 0:00:38]} 45. Rh6 {[%emt 0:00:59]} Kf3 {[%emt 0:00:24]} 46. Rf6+ {[%emt 0:02:01]} Kg4 {[%emt 0:00:24]} 47. Rh6 {[%emt 0:00:05]} Kf3 {[%emt 0:00:06]} 48. Rxh7 {[%emt 0:00:56]} Ra1+ {[%emt 0:00:02]} 49. Kh2 {[%emt 0:00:06]} Kxf2 {[%emt 0:00:03]} 50. Rf7+ {[%emt 0:00:03]} Ke3 {[%emt 0:00:10]} 51. a7 {[%emt 0:00:05]} Ke4 {[%emt 0:00:05]} 52. g4 {[%emt 0:01:41]} Ke5 {[%emt 0:00:45]} 53. g5 {[%emt 0:00:28]} Ke6 {[%emt 0:00:15]} 54. g6 {[%emt 0:00:07]} Ra5 {[%emt 0:00:21]} 55. Kh3 {[%emt 0:01:42]} Ra4 {[%emt 0:00:52]} 56. Rb7 {[%emt 0:02:20]} Kf6 {[%emt 0:00:12]} 57. g7 {[%emt 0:00:07]} Ra3+ {[%emt 0:00:05]} 58. Kg2 {[%emt 0:00:50]} Ra2+ {[%emt 0:00:06]} 59. Kf3 {[%emt 0:00:05]} Ra4 {[%emt 0:00:09]} 60. g8=Q {[%emt 0:00:41]} Rf4+ {[%emt 0:00:06] Ke4} 61. Ke2 {[%emt 0:00:22]} 1-0

[Event "EYCC Open-U18 2019"]
[Site "Bratislava"]
[Date "2019.08.05"]
[Round "4.40"]
[White "Cordeiro, Joao Carlos Santos F"]
[Black "Ghersinich, Enrico"]
[Result "1/2-1/2"]
[ECO "C06"]
[WhiteElo "1924"]
[BlackElo "2221"]
[Annotator "NA"]
[PlyCount "122"]
[EventDate "2019.08.02"]
[EventType "swiss"]
[EventCountry "SVK"]
[SourceTitle "playchess.com"]
[Source "ChessBase"]
[SourceQuality "1"]
[TimeControl "40/5400+30:1800+30"]

1. e4 {[%emt 0:00:00]} e6 {[%emt 0:00:00]} 2. d4 {[%emt 0:00:00]} d5 {[%emt 0:00:06]} 3. Nd2 {[%emt 0:00:19]} Nf6 {[%emt 0:00:33]} 4. e5 {[%emt 0:00:09]} Nfd7 {[%emt 0:00:14]} 5. Bd3 {[%emt 0:00:23]} c5 {[%emt 0:00:19]} 6. c3 {[%emt 0:00:14]} Nc6 {[%emt 0:00:09]} 7. Ne2 {[%emt 0:00:10]} cxd4 {[%emt 0:00:49]} 8. cxd4 {[%emt 0:00:07]} f6 {[%emt 0:00:10]} 9. exf6 {[%emt 0:00:12]} Qxf6 {[%emt 0:00:12]} 10. Nf3 {[%emt 0:02:44]} Bd6 {[%emt 0:00:27]} 11. Bg5 {[%emt 0:07:10]} Qf7 {[%emt 0:00:14]} 12. O-O {[%emt 0:02:47]} O-O {[%emt 0:00:28]} 13. Bh4 {[%emt 0:02:10]} h6 {[%emt 0:06:20]} 14. Rc1 {[%emt 0:05:00]} Re8 {[%emt 0:01:32]} 15. Bg3 {[%emt 0:03:28]} Qe7 {[%emt 0:09:14]} 16. Bb1 {[%emt 0:06:07]} Nf8 {[%emt 0:03:37]} 17. a3 {[%emt 0:02:40]} Bd7 {[%emt 0:02:27]} 18. Re1 {[%emt 0:04:45]} a5 {[%emt 0:06:08]} 19. Nc3 {[%emt 0:07:04]} Bxg3 {[%emt 0:00:30]} 20. hxg3 {[%emt 0:00:11]} Qf6 {[%emt 0:01:38]} 21. Qd3 {[%emt 0:08:22]} Rec8 {[%emt 0:08:18]} 22. Ne5 {[%emt 0:11:00]} Nxe5 {[%emt 0:01:16]} 23. Rxe5 {[%emt 0:05:36]} b5 {[%emt 0:01:39]} 24. Ree1 {[%emt 0:06:37]} Rc4 {[%emt 0:03:37]} 25. Ne2 {[%emt 0:01:08]} Rac8 {[%emt 0:01:18]} 26. b3 {[%emt 0:01:29]} Rxc1 {[%emt 0:00:38]} 27. Rxc1 {[%emt 0:00:08]} Rxc1+ {[%emt 0:00:14]} 28. Nxc1 {[%emt 0:00:05]} Qe7 {[%emt 0:00:12]} 29. Qc2 {[%emt 0:11:14]} Qxa3 {[%emt 0:00:43]} 30. Nd3 {[%emt 0:00:04]} Be8 {[%emt 0:01:13]} 31. Ne5 {[%emt 0:01:49]} Qa1 {[%emt 0:00:18]} 32. Qd3 {[%emt 0:05:23]} a4 {[%emt 0:00:36]} 33. bxa4 {[%emt 0:01:24]} bxa4 {[%emt 0:00:14]} 34. Kh2 {[%emt 0:01:17]} a3 {[%emt 0:00:31]} 35. Qb3 {[%emt 0:01:14]} Qxd4 {[%emt 0:00:47]} 36. Qb8 {[%emt 0:00:38]} Bh5 {[%emt 0:05:11]} 37. Nd7 {[%emt 0:01:55]} Qxf2 {[%emt 0:00:23]} 38. Nxf8 {[%emt 0:01:36]} Qb2 {[%emt 0:29:56]} 39. Qxb2 {[%emt 0:01:49]} axb2 {[%emt 0:01:23]} 40. Nxe6 {[%emt 0:00:00]} g5 {[%emt 0:00:00]} 41. Nc7 {[%emt 0:08:51]} Bf7 {[%emt 0:03:10]} 42. Kg1 {[%emt 0:06:12]} Kg7 {[%emt 0:01:12]} 43. Nb5 {[%emt 0:00:41]} Bg6 {[%emt 0:07:26]} 44. Na3 {[%emt 0:00:06]} Be4 {[%emt 0:03:22]} 45. Bxe4 {[%emt 0:06:32]} dxe4 {[%emt 0:00:07]} 46. Kf2 {[%emt 0:00:30]} Kf6 {[%emt 0:03:30]} 47. g4 {[%emt 0:00:19]} Ke5 {[%emt 0:00:23]} 48. Ke3 {[%emt 0:00:12]} Kd5 {[%emt 0:00:06]} 49. g3 {[%emt 0:00:40]} Kc5 {[%emt 0:00:06]} 50. Kxe4 {[%emt 0:01:01]} Kb4 {[%emt 0:00:44]} 51. Nb1 {[%emt 0:00:20]} Kc4 {[%emt 0:00:29]} 52. Ke3 {[%emt 0:01:29]} Kb3 {[%emt 0:02:15]} 53. Kd3 {[%emt 0:00:39]} Kb4 {[%emt 0:00:05]} 54. Nd2 {[%emt 0:01:09]} Kc5 {[%emt 0:00:06]} 55. Kc3 {[%emt 0:04:26]} Kd5 {[%emt 0:00:01]} 56. Kd3 {[%emt 0:00:13]} Kc5 {[%emt 0:00:10]} 57. Ke4 {[%emt 0:00:50]} Kb5 {[%emt 0:00:41]} 58. Kd5 {[%emt 0:00:37]} Kb4 {[%emt 0:00:16]} 59. Kd4 {[%emt 0:00:09]} Kb5 {[%emt 0:00:03]} 60. Kc3 {[%emt 0:04:08]} Kc5 {[%emt 0:00:01]} 61. Kd3 {[%emt 0:01:03]} Kd5 {Kd4+} 1/2-1/2

[Event "EYCC Open-U18 2019"]
[Site "Bratislava"]
[Date "2019.08.06"]
[Round "5.1"]
[White "Hakobyan, Aram"]
[Black "Kaasen, Tor Fredrik"]
[Result "1/2-1/2"]
[ECO "A30"]
[WhiteElo "2568"]
[BlackElo "2376"]
[Annotator "ChessBase"]
[PlyCount "69"]
[EventDate "2019.08.02"]
[EventType "swiss"]
[EventCountry "SVK"]
[SourceTitle "playchess.com"]
[Source "ChessBase"]
[SourceQuality "1"]
[TimeControl "40/5400+30:1800+30"]

1. c4 {[%emt 0:00:00]} c5 {[%emt 0:00:11]} 2. Nf3 {[%emt 0:00:00]} Nc6 {[%emt 0:00:13]} 3. Nc3 {[%emt 0:00:36]} g6 {[%emt 0:00:27]} 4. e3 {[%emt 0:02:27]} Nf6 {[%emt 0:00:31]} 5. d4 {[%emt 0:00:07]} cxd4 {[%emt 0:00:18]} 6. exd4 {[%emt 0:00:07]} d5 {[%emt 0:00:06]} 7. cxd5 {[%emt 0:00:05]} Nxd5 {[%emt 0:00:05]} 8. Qb3 {[%emt 0:00:09]} Nxc3 {[%emt 0:00:38]} 9. Bc4 {[%emt 0:00:03]} e6 {[%emt 0:00:08]} 10. bxc3 {[%emt 0:00:13]} Bd7 {[%emt 0:00:08]} 11. Bb5 {[%emt 0:07:14]} Bg7 {[%emt 0:03:55]} 12. Ba3 {[%emt 0:03:10]} Bf8 {[%emt 0:01:51]} 13. Bc1 {[%emt 0:01:25]} Bg7 {[%emt 0:00:07]} 14. Ba3 {[%emt 0:01:09]} Bf8 {[%emt 0:00:26]} 15. Bxf8 {[%emt 0:02:49]} Kxf8 {[%emt 0:00:10]} 16. O-O {[%emt 0:00:20]} Kg7 {[%emt 0:02:47]} 17. a4 {[%emt 0:12:54]} Rc8 {[%emt 0:02:43]} 18. Rfd1 {[%emt 0:05:55]} Qc7 {[%emt 0:05:31]} 19. c4 {[%emt 0:06:17]} Rhd8 {[%emt 0:14:48]} 20. Qb2 {[%emt 0:08:38]} Kg8 {[%emt 0:02:19]} 21. d5 {[%emt 0:01:20]} Na5 {[%emt 0:04:50]} 22. d6 {[%emt 0:06:36]} Qb6 {[%emt 0:08:00]} 23. Qf6 {[%emt 0:12:54]} Bxb5 {[%emt 0:10:03]} 24. Ng5 {[%emt 0:08:53]} Rf8 {[%emt 0:10:53]} 25. cxb5 {[%emt 0:02:23]} Qd8 {[%emt 0:06:57]} 26. Qf4 {[%emt 0:01:20]} Rc4 {[%emt 0:01:20]} 27. Qe3 {[%emt 0:01:23]} Qf6 {[%emt 0:02:02]} 28. Nf3 {[%emt 0:01:32]} Qf4 {[%emt 0:05:24]} 29. Qxa7 {[%emt 0:04:09]} Rxa4 {[%emt 0:00:34]} 30. d7 {[%emt 0:05:35]} Rd8 {[%emt 0:02:29]} 31. Qc5 {[%emt 0:00:25]} Rxa1 {[%emt 0:07:29]} 32. Rxa1 {[%emt 0:00:03]} Nb3 {[%emt 0:00:05]} 33. Qc8 {[%emt 0:04:16]} Qb8 {[%emt 0:00:10]} 34. Qxb8 {[%emt 0:00:04]} Rxb8 {[%emt 0:00:03]} 35. Ra3 {[%emt 0:02:10]} 1/2-1/2

[Event "EYCC Open-U18 2019"]
[Site "Bratislava"]
[Date "2019.08.06"]
[Round "5.2"]
[White "Salemgareev, Tagir"]
[Black "Vrolijk, Liam"]
[Result "1/2-1/2"]
[ECO "D41"]
[WhiteElo "2412"]
[BlackElo "2478"]
[Annotator "ChessBase"]
[PlyCount "72"]
[EventDate "2019.08.02"]
[EventType "swiss"]
[EventCountry "SVK"]
[SourceTitle "playchess.com"]
[Source "ChessBase"]
[SourceQuality "1"]
[TimeControl "40/5400+30:1800+30"]

1. d4 {[%emt 0:00:00]} Nf6 {[%emt 0:00:00]} 2. c4 {[%emt 0:00:00]} e6 {[%emt 0:00:00]} 3. Nf3 {[%emt 0:00:00]} d5 {[%emt 0:00:00]} 4. Nc3 {[%emt 0:00:00]} c5 {[%emt 0:02:56]} 5. cxd5 {[%emt 0:00:00]} Nxd5 {[%emt 0:00:06]} 6. e4 {[%emt 0:00:00]} Nxc3 {[%emt 0:00:06]} 7. bxc3 {[%emt 0:00:00]} cxd4 {[%emt 0:00:10]} 8. cxd4 {[%emt 0:00:04]} Bb4+ {[%emt 0:00:08]} 9. Bd2 {[%emt 0:00:03]} Bxd2+ {[%emt 0:00:08]} 10. Qxd2 {[%emt 0:00:04]} O-O {[%emt 0:00:50]} 11. Rc1 {[%emt 0:00:03]} b6 {[%emt 0:05:34]} 12. Bd3 {[%emt 0:00:14]} Bb7 {[%emt 0:02:55]} 13. O-O {[%emt 0:06:13]} Nc6 {[%emt 0:05:29]} 14. d5 {[%emt 0:13:04]} exd5 {[%emt 0:08:56]} 15. e5 {[%emt 0:03:02]} Re8 {[%emt 0:33:30]} 16. Rfe1 {[%emt 0:02:50]} Rc8 {[%emt 0:02:53]} 17. Qf4 {[%emt 0:03:06]} h6 {[%emt 0:04:30]} 18. h4 {[%emt 0:04:14]} Ne7 {[%emt 0:03:55]} 19. Nd4 {[%emt 0:07:24]} Rxc1 {[%emt 0:03:49]} 20. Rxc1 {[%emt 0:03:35]} Qb8 {[%emt 0:00:24]} 21. Nb5 {[%emt 0:05:50]} Bc8 {[%emt 0:05:35]} 22. Nd6 {[%emt 0:10:59]} Rf8 {[%emt 0:00:07]} 23. Bb1 {[%emt 0:04:49]} Be6 {[%emt 0:03:33]} 24. Rc3 {[%emt 0:00:51]} Kh8 {[%emt 0:02:39]} 25. h5 {[%emt 0:04:17]} Qd8 {[%emt 0:01:45]} 26. Qa4 {[%emt 0:11:20]} f6 {[%emt 0:01:13]} 27. f4 {[%emt 0:01:52]} fxe5 {[%emt 0:01:01]} 28. fxe5 {[%emt 0:00:06]} Nf5 {[%emt 0:01:10]} 29. Qc2 {[%emt 0:08:31]} g6 {[%emt 0:03:30]} 30. hxg6 {[%emt 0:02:41]} Qh4 {[%emt 0:00:15]} 31. Qd2 {[%emt 0:02:09]} Kg7 {[%emt 0:05:09]} 32. Bxf5 {[%emt 0:06:57]} Bxf5 {[%emt 0:00:15]} 33. Rf3 {[%emt 0:00:13]} Bxg6 {[%emt 0:01:12]} 34. Rxf8 {[%emt 0:00:41]} Kxf8 {[%emt 0:00:06]} 35. Qxd5 {[%emt 0:01:21]} Qe1+ {[%emt 0:00:08]} 36. Kh2 {[%emt 0:00:04]} Qh4+ {[%emt 0:00:05]} 1/2-1/2

[Event "EYCC Open-U18 2019"]
[Site "Bratislava"]
[Date "2019.08.06"]
[Round "5.3"]
[White "Pantzar, Milton"]
[Black "Baenziger, Fabian"]
[Result "1-0"]
[ECO "D27"]
[WhiteElo "2357"]
[BlackElo "2352"]
[Annotator "NA"]
[PlyCount "79"]
[EventDate "2019.08.02"]
[EventType "swiss"]
[EventCountry "SVK"]
[SourceTitle "playchess.com"]
[Source "ChessBase"]
[SourceQuality "1"]
[TimeControl "40/5400+30:1800+30"]

1. d4 {[%emt 0:00:00]} d5 {[%emt 0:00:07]} 2. c4 {[%emt 0:00:29]} dxc4 {[%emt 0:01:15]} 3. Nf3 {[%emt 0:01:34]} Nf6 {[%emt 0:01:00]} 4. e3 {[%emt 0:00:41]} e6 {[%emt 0:00:54]} 5. Bxc4 {[%emt 0:00:26]} c5 {[%emt 0:00:43]} 6. O-O {[%emt 0:02:11]} a6 {[%emt 0:00:40]} 7. b3 {[%emt 0:05:32]} b5 {[%emt 0:01:07]} 8. Be2 {[%emt 0:00:24]} Bb7 {[%emt 0:00:43]} 9. Bb2 {[%emt 0:01:45]} Nbd7 {[%emt 0:00:56]} 10. a4 {[%emt 0:07:28]} b4 {[%emt 0:01:04]} 11. Nbd2 {[%emt 0:00:54]} Be7 {[%emt 0:01:21]} 12. Nc4 {[%emt 0:04:47]} O-O {[%emt 0:02:52]} 13. Nfe5 {[%emt 0:08:02]} cxd4 {[%emt 0:18:44]} 14. Nxd7 {[%emt 0:08:02]} Nxd7 {[%emt 0:03:56]} 15. Bxd4 {[%emt 0:00:36]} Rc8 {[%emt 0:06:33]} 16. a5 {[%emt 0:11:31]} Bc5 {[%emt 0:05:41]} 17. Bb2 {[%emt 0:14:34]} Nf6 {[%emt 0:14:50]} 18. Qxd8 {[%emt 0:10:18]} Rcxd8 {[%emt 0:02:32]} 19. Rfd1 {[%emt 0:00:42]} Ne4 {[%emt 0:05:22]} 20. Bf3 {[%emt 0:02:23]} Bd5 {[%emt 0:01:19]} 21. Rac1 {[%emt 0:05:04]} Bxc4 {[%emt 0:20:23]} 22. Rxd8 {[%emt 0:02:14]} Rxd8 {[%emt 0:00:32]} 23. Rxc4 {[%emt 0:01:12]} f5 {[%emt 0:00:08]} 24. h3 {[%emt 0:03:57]} Rd2 {[%emt 0:05:29]} 25. Bc1 {[%emt 0:02:46]} Rd3 {[%emt 0:01:17]} 26. Bxe4 {[%emt 0:02:16]} Rd1+ {[%emt 0:00:03]} 27. Kh2 {[%emt 0:00:05]} Bd6+ {[%emt 0:00:03]} 28. f4 {[%emt 0:01:02]} fxe4 {[%emt 0:00:17]} 29. Bb2 {[%emt 0:00:42]} Rd2 {[%emt 0:03:01]} 30. Bd4 {[%emt 0:01:20]} Kf7 {[%emt 0:01:20]} 31. Kg1 {[%emt 0:01:27]} h5 {[%emt 0:00:27]} 32. g3 {[%emt 0:00:33]} Rd3 {[%emt 0:00:41]} 33. Rc6 {[%emt 0:00:14]} Bf8 {[%emt 0:00:07]} 34. Rxa6 {[%emt 0:00:12]} Rxb3 {[%emt 0:00:03]} 35. Rb6 {[%emt 0:00:58]} Ra3 {[%emt 0:00:38]} 36. a6 {[%emt 0:00:10]} g5 {[%emt 0:00:38]} 37. Rb7+ {[%emt 0:00:42]} Kg6 {[%emt 0:00:03]} 38. a7 {[%emt 0:00:05]} b3 {[%emt 0:01:22]} 39. Rb8 {[%emt 0:00:28]} b2 {[%emt 0:00:12]} 40. Bxb2 {[%emt 0:00:00]} 1-0

[Event "EYCC Open-U18 2019"]
[Site "Bratislava"]
[Date "2019.08.06"]
[Round "5.4"]
[White "Travadon, Loic"]
[Black "Van Foreest, Lucas"]
[Result "1/2-1/2"]
[ECO "E92"]
[WhiteElo "2403"]
[BlackElo "2521"]
[Annotator "ChessBase"]
[PlyCount "49"]
[EventDate "2019.08.02"]
[EventType "swiss"]
[EventCountry "SVK"]
[SourceTitle "playchess.com"]
[Source "ChessBase"]
[SourceQuality "1"]
[TimeControl "40/5400+30:1800+30"]

1. Nf3 {[%emt 0:00:00]} Nf6 {[%emt 0:00:00]} 2. c4 {[%emt 0:00:00]} g6 {[%emt 0:00:08]} 3. Nc3 {[%emt 0:00:00]} Bg7 {[%emt 0:00:05]} 4. d4 {[%emt 0:00:00]} O-O {[%emt 0:00:10]} 5. e4 {[%emt 0:00:00]} d6 {[%emt 0:00:05]} 6. Be2 {[%emt 0:00:00]} e5 {[%emt 0:00:06]} 7. d5 {[%emt 0:00:00]} Na6 {[%emt 0:03:04]} 8. Nd2 {[%emt 0:00:00]} Bh6 {[%emt 0:01:16]} 9. h4 {[%emt 0:00:02]} Nc5 {[%emt 0:01:08]} 10. h5 {[%emt 0:01:02]} gxh5 {[%emt 0:03:07]} 11. b4 {[%emt 0:02:14]} Bxd2+ {[%emt 0:22:54]} 12. Qxd2 {[%emt 0:03:20]} Ncxe4 {[%emt 0:01:38]} 13. Nxe4 {[%emt 0:00:04]} Nxe4 {[%emt 0:00:03]} 14. Qh6 {[%emt 0:00:05]} f5 {[%emt 0:25:16]} 15. Rxh5 {[%emt 0:03:15]} Qe7 {[%emt 0:01:22]} 16. Bd3 {[%emt 0:08:17]} Rf6 {[%emt 0:02:13]} 17. Qe3 {[%emt 0:00:08]} Rg6 {[%emt 0:00:41]} 18. Bxe4 {[%emt 0:03:37]} fxe4 {[%emt 0:00:14]} 19. Rg5 {[%emt 0:05:08]} Qxg5 {[%emt 0:00:21]} 20. Qxg5 {[%emt 0:00:06]} Rxg5 {[%emt 0:00:03]} 21. Bxg5 {[%emt 0:00:02]} Bd7 {[%emt 0:04:15]} 22. Kd2 {[%emt 0:00:39]} a5 {[%emt 0:00:44]} 23. b5 {[%emt 0:00:29]} b6 {[%emt 0:00:04]} 24. Rh1 {[%emt 0:00:49]} Bf5 {[%emt 0:01:20]} 25. Be3 {[%emt 0:03:03]} 1/2-1/2

[Event "EYCC Open-U18 2019"]
[Site "Bratislava"]
[Date "2019.08.06"]
[Round "5.5"]
[White "Nguyen, Thai Dai Van"]
[Black "Bronstein, Or"]
[Result "1/2-1/2"]
[ECO "B90"]
[WhiteElo "2535"]
[BlackElo "2378"]
[Annotator "ChessBase"]
[PlyCount "65"]
[EventDate "2019.08.02"]
[EventType "swiss"]
[EventCountry "SVK"]
[SourceTitle "playchess.com"]
[Source "ChessBase"]
[SourceQuality "1"]
[TimeControl "40/5400+30:1800+30"]

1. e4 {[%emt 0:00:00]} c5 {[%emt 0:00:00]} 2. Nf3 {[%emt 0:00:00]} d6 {[%emt 0:00:00]} 3. d4 {[%emt 0:00:00]} cxd4 {[%emt 0:00:00]} 4. Nxd4 {[%emt 0:00:03]} Nf6 {[%emt 0:00:00]} 5. Nc3 {[%emt 0:00:05]} a6 {[%emt 0:00:00]} 6. Bd3 {[%emt 0:00:12]} e5 {[%emt 0:00:44]} 7. Nde2 {[%emt 0:00:10]} Be7 {[%emt 0:00:11]} 8. O-O {[%emt 0:00:07]} Be6 {[%emt 0:00:30]} 9. f4 {[%emt 0:00:05]} exf4 {[%emt 0:08:25]} 10. Nxf4 {[%emt 0:00:07]} Nc6 {[%emt 0:06:42]} 11. Be3 {[%emt 0:00:05]} Ne5 {[%emt 0:00:43]} 12. a4 {[%emt 0:00:16]} O-O {[%emt 0:03:23]} 13. a5 {[%emt 0:00:03]} Re8 {[%emt 0:09:44]} 14. Bd4 {[%emt 0:05:13]} Rc8 {[%emt 0:11:35]} 15. Kh1 {[%emt 0:24:10]} Nfd7 {[%emt 0:08:31]} 16. Ncd5 {[%emt 0:00:48]} Bg5 {[%emt 0:00:24]} 17. c3 {[%emt 0:12:06]} Nc5 {[%emt 0:05:49]} 18. Bc2 {[%emt 0:07:20]} Bg4 {[%emt 0:01:28]} 19. Qe1 {[%emt 0:06:04]} Bh4 {[%emt 0:04:22]} 20. Qc1 {[%emt 0:01:02]} Bg5 {[%emt 0:14:36]} 21. Qe1 {[%emt 0:11:49]} Bh4 {[%emt 0:00:02]} 22. Qc1 {[%emt 0:00:05]} Bg5 {[%emt 0:00:03]} 23. Qb1 {[%emt 0:11:49]} Nc4 {[%emt 0:01:46]} 24. Rf2 {[%emt 0:00:06]} Ne6 {[%emt 0:06:54]} 25. Nxe6 {[%emt 0:00:12]} Bxe6 {[%emt 0:01:55]} 26. b3 {[%emt 0:07:12]} Ne5 {[%emt 0:00:10]} 27. b4 {[%emt 0:00:04]} Ng4 {[%emt 0:03:45]} 28. Rf3 {[%emt 0:01:01]} Bxd5 {[%emt 0:01:41]} 29. exd5 {[%emt 0:00:01]} g6 {[%emt 0:00:10]} 30. Qf1 {[%emt 0:02:23]} Ne3 {[%emt 0:02:28]} 31. Qd3 {[%emt 0:02:09]} Nxc2 {[%emt 0:00:26]} 32. Qxc2 {[%emt 0:00:01]} f5 {[%emt 0:00:46]} 33. Qd3 {[%emt 0:03:53]} 1/2-1/2

[Event "EYCC Open-U18 2019"]
[Site "Bratislava"]
[Date "2019.08.06"]
[Round "5.6"]
[White "Engel, Luis"]
[Black "Fus, Jakub"]
[Result "1-0"]
[ECO "C77"]
[WhiteElo "2509"]
[BlackElo "2341"]
[Annotator "ChessBase"]
[PlyCount "117"]
[EventDate "2019.08.02"]
[EventType "swiss"]
[EventCountry "SVK"]
[SourceTitle "playchess.com"]
[Source "ChessBase"]
[SourceQuality "1"]
[TimeControl "40/5400+30:1800+30"]

1. e4 {[%emt 0:00:00]} e5 {[%emt 0:00:00]} 2. Nf3 {[%emt 0:00:00]} Nc6 {[%emt 0:00:11]} 3. Bb5 {[%emt 0:00:00]} a6 {[%emt 0:00:25]} 4. Ba4 {[%emt 0:00:00]} Nf6 {[%emt 0:00:19]} 5. d3 {[%emt 0:00:00]} b5 {[%emt 0:00:22]} 6. Bb3 {[%emt 0:00:00]} Be7 {[%emt 0:00:29]} 7. a4 {[%emt 0:00:07]} b4 {[%emt 0:00:43]} 8. Nbd2 {[%emt 0:00:07]} O-O {[%emt 0:01:13]} 9. Nc4 {[%emt 0:00:15]} d6 {[%emt 0:00:32]} 10. h3 {[%emt 0:00:07]} Re8 {[%emt 0:02:38]} 11. O-O {[%emt 0:00:20]} h6 {[%emt 0:01:29]} 12. Re1 {[%emt 0:01:29]} Bf8 {[%emt 0:00:40]} 13. a5 {[%emt 0:03:11]} Rb8 {[%emt 0:04:23]} 14. Bd2 {[%emt 0:05:09]} Nd4 {[%emt 0:07:07]} 15. Nxd4 {[%emt 0:01:09]} exd4 {[%emt 0:00:06]} 16. e5 {[%emt 0:04:44]} Nd7 {[%emt 0:26:38]} 17. exd6 {[%emt 0:00:54]} cxd6 {[%emt 0:04:07]} 18. Rxe8 {[%emt 0:14:26]} Qxe8 {[%emt 0:00:05]} 19. Qe1 {[%emt 0:24:51]} Qd8 {[%emt 0:07:23]} 20. Qe4 {[%emt 0:10:49]} Nc5 {[%emt 0:05:51]} 21. Qxd4 {[%emt 0:00:13]} Nxb3 {[%emt 0:00:16]} 22. cxb3 {[%emt 0:00:06]} Rb5 {[%emt 0:01:10]} 23. Ne3 {[%emt 0:09:02]} Be6 {[%emt 0:11:11]} 24. Bxb4 {[%emt 0:01:20]} Bxb3 {[%emt 0:02:45]} 25. Bc3 {[%emt 0:02:23]} Be6 {[%emt 0:02:02]} 26. Re1 {[%emt 0:01:01]} Qd7 {[%emt 0:03:04]} 27. f4 {[%emt 0:03:50]} Qc6 {[%emt 0:06:27]} 28. Rf1 {[%emt 0:02:04]} Bc8 {[%emt 0:03:06]} 29. f5 {[%emt 0:02:25]} Bb7 {[%emt 0:01:44]} 30. Rf3 {[%emt 0:01:39]} f6 {[%emt 0:03:12]} 31. Rg3 {[%emt 0:01:47]} Qc5 {[%emt 0:03:35]} 32. Qg4 {[%emt 0:02:49]} Bc8 33. d4 {[%emt 0:04:59]} Qa7 {[%emt 0:01:01]} 34. d5 {[%emt 0:00:06]} Qf7 {[%emt 0:00:14]} 35. Qh4 {[%emt 0:01:59]} Kh7 {[%emt 0:00:34]} 36. Kh2 {[%emt 0:01:42]} Rb7 {[%emt 0:00:33]} 37. Qf4 {[%emt 0:00:31]} Re7 {[%emt 0:02:08]} 38. Ng4 {[%emt 0:00:50]} h5 {[%emt 0:00:38]} 39. Ne3 {[%emt 0:00:32]} Qe8 {[%emt 0:00:02]} 40. Qf2 {[%emt 0:00:00]} Qa4 {[%emt 0:00:00]} 41. Rf3 {[%emt 0:04:37]} Re4 {[%emt 0:04:31]} 42. g4 {[%emt 0:01:25]} Qe8 {[%emt 0:02:57]} 43. Qg3 {[%emt 0:02:13]} hxg4 {[%emt 0:03:27]} 44. hxg4 {[%emt 0:02:06]} Kg8 {[%emt 0:00:17]} 45. Kg1 {[%emt 0:03:28]} Qf7 {[%emt 0:09:45]} 46. g5 {[%emt 0:03:22]} fxg5 {[%emt 0:00:34]} 47. Qxg5 {[%emt 0:00:23]} Bd7 {[%emt 0:07:36]} 48. Kf2 {[%emt 0:03:21]} Be8 {[%emt 0:02:08]} 49. Ng4 {[%emt 0:01:07]} Rxg4 {[%emt 0:00:18]} 50. Qxg4 {[%emt 0:00:06]} Qxd5 {[%emt 0:00:05]} 51. f6 {[%emt 0:01:49]} g6 {[%emt 0:01:46]} 52. Rh3 {[%emt 0:02:31]} Qc5+ {[%emt 0:01:31]} 53. Qd4 {[%emt 0:01:31]} Qf5+ {[%emt 0:00:03]} 54. Rf3 {[%emt 0:00:09]} Qc2+ {[%emt 0:00:04]} 55. Qd2 {[%emt 0:00:58]} Qb1 {[%emt 0:01:29]} 56. f7+ {[%emt 0:03:02]} Bxf7 {[%emt 0:00:04]} 57. Qf4 {[%emt 0:00:05]} Qf5 {[%emt 0:02:33]} 58. Qxf5 {[%emt 0:00:16]} gxf5 {[%emt 0:00:04]} 59. Rxf5 {[%emt 0:00:06]} 1-0